fUSD/lending_fUSD_20260625
["ID","MTS","AMOUNT","RATE_DAILY","PERIOD"]
[426398027,1782347439000,-500.0,0.00013906,2]
[426398034,1782347439000,-500.0,0.00013906,2]
[426398036,1782347439000,-500.0,0.00013906,2]
[426398039,1782347439000,-500.0,0.00013906,2]
[426398041,1782347439000,-500.0,0.00013906,2]
[426398037,1782347439000,-500.0,0.00013906,2]
[426398044,1782347439000,-500.0,0.00013906,2]
[426398030,1782347439000,-500.0,0.00013906,2]
[426398069,1782347439000,-500.0,0.00013906,2]
[426398071,1782347439000,-500.0,0.00013906,2]
[426398047,1782347439000,-500.0,0.00013906,2]
[426398067,1782347439000,-500.0,0.00013906,2]
[426398063,1782347439000,-500.0,0.00013906,2]
[426398057,1782347439000,-500.0,0.00013906,2]
[426398065,1782347439000,-500.0,0.00013906,2]
[426398055,1782347439000,-500.0,0.00013906,2]
[426398059,1782347439000,-500.0,0.00013906,2]
[426398053,1782347439000,-500.0,0.00013906,2]
[426398051,1782347439000,-500.0,0.00013906,2]
[426398049,1782347439000,-500.0,0.00013906,2]
[426398045,1782347439000,-500.0,0.00013906,2]
[426398061,1782347439000,-500.0,0.00013906,2]
[426398143,1782347440000,-500.0,0.00013906,2]
[426398151,1782347440000,-1779.98,0.00013906,2]
[426398145,1782347440000,-1779.98,0.00013906,2]
[426398147,1782347440000,-1779.98,0.00013906,2]
[426398139,1782347440000,-500.0,0.00013906,2]
[426398146,1782347440000,-1779.98,0.00013906,2]
[426398148,1782347440000,-1779.98,0.00013906,2]
[426398140,1782347440000,-500.0,0.00013906,2]
[426398141,1782347440000,-500.0,0.00013906,2]
[426398142,1782347440000,-500.0,0.00013906,2]
[426398137,1782347440000,-500.0,0.00013906,2]
[426398150,1782347440000,-1779.98,0.00013906,2]
[426398144,1782347440000,-500.0,0.00013906,2]
[426398162,1782347440000,-2327.39,0.00013906,2]
[426398168,1782347440000,-2327.39,0.00013906,2]
[426398166,1782347440000,-2327.39,0.00013906,2]
[426398164,1782347440000,-2327.39,0.00013906,2]
[426398153,1782347440000,-1779.98,0.00013906,2]
[426398156,1782347440000,-2327.39,0.00013906,2]
[426398159,1782347440000,-2327.39,0.00013906,2]
[426398157,1782347440000,-2327.39,0.00013906,2]
[426398158,1782347440000,-2327.39,0.00013906,2]
[426398154,1782347440000,-1779.98,0.00013906,2]
[426398160,1782347440000,-2327.39,0.00013906,2]
[426398155,1782347440000,-2327.39,0.00013906,2]
[426398170,1782347440000,-2327.39,0.00013906,2]
[426398172,1782347440000,-150.0,0.00013906,2]
[426398174,1782347440000,-520.11,0.00013907,2]
[426398149,1782347440000,-1779.98,0.00013906,2]
[426398152,1782347440000,-1779.98,0.00013906,2]
[426398138,1782347440000,-500.0,0.00013906,2]
[426398110,1782347440000,-562.9,0.00013906,2]
[426398131,1782347440000,-500.0,0.00013906,2]
[426398176,1782347440000,-520.11,0.00013907,2]
[426398111,1782347440000,-562.9,0.00013906,2]
[426398107,1782347440000,-562.9,0.00013906,2]
[426398106,1782347440000,-562.9,0.00013906,2]
[426398108,1782347440000,-562.9,0.00013906,2]
[426398109,1782347440000,-562.9,0.00013906,2]
[426398112,1782347440000,-562.9,0.00013906,2]
[426398113,1782347440000,-562.9,0.00013906,2]
[426398114,1782347440000,-500.0,0.00013906,2]
[426398115,1782347440000,-500.0,0.00013906,2]
[426398116,1782347440000,-500.0,0.00013906,2]
[426398119,1782347440000,-500.0,0.00013906,2]
[426398121,1782347440000,-500.0,0.00013906,2]
[426398123,1782347440000,-500.0,0.00013906,2]
[426398120,1782347440000,-500.0,0.00013906,2]
[426398118,1782347440000,-500.0,0.00013906,2]
[426398124,1782347440000,-500.0,0.00013906,2]
[426398122,1782347440000,-500.0,0.00013906,2]
[426398117,1782347440000,-500.0,0.00013906,2]
[426398126,1782347440000,-500.0,0.00013906,2]
[426398136,1782347440000,-500.0,0.00013906,2]
[426398127,1782347440000,-500.0,0.00013906,2]
[426398125,1782347440000,-500.0,0.00013906,2]
[426398128,1782347440000,-500.0,0.00013906,2]
[426398129,1782347440000,-500.0,0.00013906,2]
[426398130,1782347440000,-500.0,0.00013906,2]
[426398132,1782347440000,-500.0,0.00013906,2]
[426398133,1782347440000,-207.02,0.00013906,2]
[426398134,1782347440000,-500.0,0.00013906,2]
[426398135,1782347440000,-500.0,0.00013906,2]
[426398182,1782347440000,-520.11,0.00013907,2]
[426398236,1782347440000,-500.0,0.00013907,2]
[426398188,1782347440000,-500.0,0.00013907,2]
[426398247,1782347440000,-500.0,0.00013907,2]
[426398248,1782347440000,-500.0,0.00013907,2]
[426398239,1782347440000,-500.0,0.00013907,2]
[426398238,1782347440000,-500.0,0.00013907,2]
[426398268,1782347440000,-1779.98,0.00013907,2]
[426398241,1782347440000,-281.34,0.00013907,2]
[426398244,1782347440000,-500.0,0.00013907,2]
[426398242,1782347440000,-500.0,0.00013907,2]
[426398245,1782347440000,-500.0,0.00013907,2]
[426398243,1782347440000,-500.0,0.00013907,2]
[426398246,1782347440000,-500.0,0.00013907,2]
[426398250,1782347440000,-562.9,0.00013907,2]
[426398253,1782347440000,-562.9,0.00013907,2]
[426398257,1782347440000,-326.08,0.00013907,2]
[426398256,1782347440000,-500.0,0.00013907,2]
[426398252,1782347440000,-562.9,0.00013907,2]
[426398255,1782347440000,-562.9,0.00013907,2]
[426398254,1782347440000,-562.9,0.00013907,2]
[426398251,1782347440000,-562.9,0.00013907,2]
[426398260,1782347440000,-500.0,0.00013907,2]
[426398258,1782347440000,-500.0,0.00013907,2]
[426398259,1782347440000,-500.0,0.00013907,2]
[426398262,1782347440000,-500.0,0.00013907,2]
[426398261,1782347440000,-500.0,0.00013907,2]
[426398264,1782347440000,-1779.98,0.00013907,2]
[426398265,1782347440000,-1779.98,0.00013907,2]
[426398266,1782347440000,-1779.98,0.00013907,2]
[426398267,1782347440000,-1779.98,0.00013907,2]
[426398180,1782347440000,-520.11,0.00013907,2]
[426398240,1782347440000,-500.0,0.00013907,2]
[426398249,1782347440000,-562.9,0.00013907,2]
[426398263,1782347440000,-500.0,0.00013907,2]
[426398230,1782347440000,-500.0,0.00013907,2]
[426398237,1782347440000,-500.0,0.00013907,2]
[426398178,1782347440000,-520.11,0.00013907,2]
[426398190,1782347440000,-500.0,0.00013907,2]
[426398186,1782347440000,-520.11,0.00013907,2]
[426398192,1782347440000,-500.0,0.00013907,2]
[426398194,1782347440000,-500.0,0.00013907,2]
[426398196,1782347440000,-500.0,0.00013907,2]
[426398198,1782347440000,-500.0,0.00013907,2]
[426398200,1782347440000,-500.0,0.00013907,2]
[426398202,1782347440000,-500.0,0.00013907,2]
[426398207,1782347440000,-500.0,0.00013907,2]
[426398216,1782347440000,-500.0,0.00013907,2]
[426398205,1782347440000,-500.0,0.00013907,2]
[426398214,1782347440000,-500.0,0.00013907,2]
[426398209,1782347440000,-500.0,0.00013907,2]
[426398184,1782347440000,-520.11,0.00013907,2]
[426398218,1782347440000,-500.0,0.00013907,2]
[426398210,1782347440000,-500.0,0.00013907,2]
[426398223,1782347440000,-448.76706005,0.00013907,2]
[426398233,1782347440000,-500.0,0.00013907,2]
[426398231,1782347440000,-511.70912212,0.00013907,2]
[426398235,1782347440000,-490.30899527,0.00013907,2]
[426398229,1782347440000,-500.0,0.00013907,2]
[426398232,1782347440000,-500.0,0.00013907,2]
[426398227,1782347440000,-500.0,0.00013907,2]
[426398212,1782347440000,-500.0,0.00013907,2]
[426398222,1782347440000,-500.0,0.00013907,2]
[426398220,1782347440000,-500.0,0.00013907,2]
[426398225,1782347440000,-500.0,0.00013907,2]
[426398234,1782347440000,-500.0,0.00013907,2]
[426398228,1782347440000,-500.0,0.00013907,2]
[426398314,1782347441000,-150.0,0.00014087,2]
[426398295,1782347441000,-261.49644679,0.0001399,2]
[426398297,1782347441000,-150.0,0.00013996,2]
[426398300,1782347441000,-250.0,0.00014,2]
[426398305,1782347441000,-150.0,0.00014027,2]
[426398303,1782347441000,-150.0,0.00014018,2]
[426398311,1782347441000,-386.57581585,0.00014063,2]
[426398304,1782347441000,-24493.01368492,0.00014026,2]
[426398313,1782347441000,-150.0,0.00014083,2]
[426398309,1782347441000,-150.0,0.0001405,2]
[426398298,1782347441000,-153.136966,0.00014,2]
[426398307,1782347441000,-150.0,0.0001404,2]
[426398326,1782347441000,-150.0,0.00014148,2]
[426398310,1782347441000,-150.0,0.00014057,2]
[426398308,1782347441000,-150.0,0.0001405,2]
[426398312,1782347441000,-150.0,0.00014076,2]
[426398327,1782347441000,-150.0,0.00014149,2]
[426398316,1782347441000,-150.0,0.00014116,2]
[426398328,1782347441000,-34517.26154803,0.00014164,2]
[426398315,1782347441000,-150.0,0.00014101,2]
[426398318,1782347441000,-150.0,0.00014118,2]
[426398317,1782347441000,-278.04,0.00014117,2]
[426398319,1782347441000,-151.0,0.00014127,2]
[426398296,1782347441000,-179.08,0.0001399,2]
[426398320,1782347441000,-316.0,0.00014131,2]
[426398306,1782347441000,-150.0,0.00014036,2]
[426398299,1782347441000,-3478.942043,0.00014,2]
[426398287,1782347441000,-150.0,0.00013951,2]
[426398302,1782347441000,-150.0,0.00014017,2]
[426398322,1782347441000,-150.0,0.00014133,2]
[426398275,1782347441000,-2327.39,0.00013907,2]
[426398274,1782347441000,-2327.39,0.00013907,2]
[426398270,1782347441000,-1779.98,0.00013907,2]
[426398269,1782347441000,-1779.98,0.00013907,2]
[426398273,1782347441000,-2327.39,0.00013907,2]
[426398271,1782347441000,-2327.39,0.00013907,2]
[426398272,1782347441000,-2327.39,0.00013907,2]
[426398276,1782347441000,-2327.39,0.00013907,2]
[426398284,1782347441000,-34517.26154803,0.00013919,2]
[426398288,1782347441000,-2894.18668312,0.00013954,2]
[426398286,1782347441000,-150.0,0.00013947,2]
[426398280,1782347441000,-2327.39,0.00013916,2]
[426398278,1782347441000,-8590.4394,0.00013908,2]
[426398285,1782347441000,-150.0,0.00013936,2]
[426398279,1782347441000,-43174.22637132,0.0001391,2]
[426398281,1782347441000,-24493.01368492,0.00013916,2]
[426398282,1782347441000,-150.0,0.00013918,2]
[426398277,1782347441000,-33326.4581,0.00013908,2]
[426398289,1782347441000,-150.0,0.00013961,2]
[426398291,1782347441000,-150.0,0.00013971,2]
[426398292,1782347441000,-150.0,0.00013984,2]
[426398294,1782347441000,-60000.0,0.0001399,2]
[426398301,1782347441000,-150.0,0.00014009,2]
[426398293,1782347441000,-500.0,0.00013989,2]
[426398290,1782347441000,-150.0,0.00013966,2]
[426398321,1782347441000,-150.0,0.00014133,2]
[426398283,1782347441000,-155.07,0.00013918,2]
[426398323,1782347441000,-150.0,0.00014133,2]
[426398363,1782347441000,-150.0,0.00014362,2]
[426398356,1782347441000,-150.0,0.00014348,2]
[426398357,1782347441000,-24493.01368492,0.00014354,2]
[426398359,1782347441000,-261.49644679,0.00014354,2]
[426398361,1782347441000,-150.0,0.00014359,2]
[426398362,1782347441000,-150.0,0.00014361,2]
[426398360,1782347441000,-500.0,0.00014356,2]
[426398365,1782347441000,-150.0,0.00014381,2]
[426398364,1782347441000,-433.0,0.00014362,2]
[426398368,1782347441000,-150.0,0.00014391,2]
[426398378,1782347441000,-165.345,0.00014459,2]
[426398377,1782347441000,-2764.008,0.00014459,2]
[426398371,1782347441000,-150.0,0.00014414,2]
[426398370,1782347441000,-150.0,0.00014412,2]
[426398381,1782347441000,-150.0,0.00014476,2]
[426398376,1782347441000,-150.0,0.00014452,2]
[426398372,1782347441000,-150.0,0.00014419,2]
[426398367,1782347441000,-150.0,0.00014381,2]
[426398374,1782347441000,-150.0,0.00014424,2]
[426398375,1782347441000,-150.0,0.00014447,2]
[426398373,1782347441000,-150.0,0.00014421,2]
[426398379,1782347441000,-24493.01368492,0.00014463,2]
[426398382,1782347441000,-150.0,0.0001448,2]
[426398380,1782347441000,-633.15,0.0001447,2]
[426398324,1782347441000,-150.0,0.00014133,2]
[426398358,1782347441000,-609.05563596,0.00014354,2]
[426398366,1782347441000,-150.0,0.00014381,2]
[426398369,1782347441000,-34517.26154803,0.0001441,2]
[426398351,1782347441000,-150.0,0.000143,2]
[426398325,1782347441000,-24493.01368492,0.00014135,2]
[426398355,1782347441000,-150.0,0.0001433,2]
[426398329,1782347441000,-150.0,0.00014165,2]
[426398330,1782347441000,-261.49644679,0.00014172,2]
[426398335,1782347441000,-150.0,0.00014216,2]
[426398331,1782347441000,-150.0,0.00014178,2]
[426398334,1782347441000,-150.0,0.00014209,2]
[426398333,1782347441000,-150.0,0.0001419,2]
[426398332,1782347441000,-150.0,0.00014182,2]
[426398338,1782347441000,-150.0,0.0001423,2]
[426398339,1782347441000,-150.0,0.00014239,2]
[426398337,1782347441000,-150.0,0.00014226,2]
[426398341,1782347441000,-24493.01368492,0.00014244,2]
[426398336,1782347441000,-150.0,0.00014216,2]
[426398340,1782347441000,-2327.39,0.00014244,2]
[426398352,1782347441000,-150.0,0.00014305,2]
[426398349,1782347441000,-150.0,0.00014282,2]
[426398347,1782347441000,-2894.18668312,0.00014269,2]
[426398342,1782347441000,-293.67,0.00014247,2]
[426398346,1782347441000,-150.0,0.00014257,2]
[426398348,1782347441000,-150.0,0.00014269,2]
[426398350,1782347441000,-150.0,0.00014295,2]
[426398344,1782347441000,-150.0,0.00014247,2]
[426398354,1782347441000,-150.0,0.00014319,2]
[426398343,1782347441000,-1779.98,0.00014247,2]
[426398353,1782347441000,-150.0,0.00014315,2]
[426398345,1782347441000,-150.0,0.00014249,2]
[426398427,1782347442000,-2327.39,0.00014687,2]
[426398425,1782347442000,-2327.39,0.00014687,2]
[426398423,1782347442000,-150.0,0.00014683,2]
[426398421,1782347442000,-150.0,0.00014678,2]
[426398419,1782347442000,-34517.26154803,0.00014655,2]
[426398422,1782347442000,-24493.01368492,0.00014682,2]
[426398417,1782347442000,-150.0,0.00014645,2]
[426398431,1782347442000,-2327.39,0.00014687,2]
[426398429,1782347442000,-2327.39,0.00014687,2]
[426398424,1782347442000,-1779.98,0.00014687,2]
[426398415,1782347442000,-150.0,0.00014629,2]
[426398418,1782347442000,-150.0,0.00014648,2]
[426398420,1782347442000,-150.0,0.00014664,2]
[426398432,1782347442000,-2327.43536514,0.00014687,2]
[426398448,1782347442000,-252.65146258,0.00014749,2]
[426398434,1782347442000,-155.07,0.00014691,2]
[426398444,1782347442000,-150.0,0.00014744,2]
[426398439,1782347442000,-150.0,0.00014711,2]
[426398437,1782347442000,-150.0,0.00014705,2]
[426398436,1782347442000,-800.0,0.000147,5]
[426398440,1782347442000,-261.49644679,0.00014718,2]
[426398443,1782347442000,-272.01877318,0.00014742,2]
[426398441,1782347442000,-150.0,0.00014725,2]
[426398442,1782347442000,-500.0,0.0001474,2]
[426398438,1782347442000,-150.0,0.00014711,2]
[426398433,1782347442000,-150.0,0.00014691,2]
[426398461,1782347442000,-150.0,0.00014812,2]
[426398410,1782347442000,-150.0,0.00014598,2]
[426398435,1782347442000,-150.0,0.00014695,2]
[426398408,1782347442000,-2894.18668312,0.00014585,2]
[426398385,1782347442000,-640.57,0.00014497,2]
[426398407,1782347442000,-272.01877318,0.00014583,2]
[426398383,1782347442000,-150.0,0.00014482,2]
[426398384,1782347442000,-150.0,0.00014489,2]
[426398387,1782347442000,-150.0,0.00014505,2]
[426398451,1782347442000,-150.0,0.00014762,2]
[426398386,1782347442000,-150.0,0.00014505,2]
[426398390,1782347442000,-500.0,0.00014526,2]
[426398389,1782347442000,-150.0,0.00014513,2]
[426398388,1782347442000,-150.0,0.00014512,2]
[426398392,1782347442000,-150.0,0.00014533,2]
[426398401,1782347442000,-150.0,0.00014553,2]
[426398396,1782347442000,-562.9,0.00014535,2]
[426398400,1782347442000,-150.0,0.00014546,2]
[426398393,1782347442000,-520.11,0.00014535,2]
[426398399,1782347442000,-150.0,0.00014546,2]
[426398403,1782347442000,-24493.01368492,0.00014572,2]
[426398402,1782347442000,-505.85568272,0.00014558,2]
[426398391,1782347442000,-213.23061477,0.00014526,2]
[426398395,1782347442000,-500.0,0.00014535,2]
[426398398,1782347442000,-150.0,0.00014543,2]
[426398397,1782347442000,-261.49644679,0.00014536,2]
[426398394,1782347442000,-500.0,0.00014535,2]
[426398411,1782347442000,-150.0,0.00014603,2]
[426398413,1782347442000,-150.0,0.00014618,2]
[426398406,1782347442000,-200.0,0.00014581,2]
[426398405,1782347442000,-150.0,0.00014579,2]
[426398412,1782347442000,-150.0,0.00014612,2]
[426398416,1782347442000,-150.0,0.00014634,2]
[426398404,1782347442000,-150.0,0.00014573,2]
[426398409,1782347442000,-150.0,0.00014591,2]
[426398414,1782347442000,-395.63650625,0.00014619,2]
[426398460,1782347442000,-200.0,0.00014812,2]
[426398467,1782347442000,-150.0,0.00014846,2]
[426398459,1782347442000,-150.0,0.00014811,2]
[426398493,1782347442000,-520.11,0.0001489,2]
[426398497,1782347442000,-520.11,0.0001489,2]
[426398491,1782347442000,-25000.0,0.00014882,3]
[426398500,1782347442000,-258.23576843,0.0001489,2]
[426398495,1782347442000,-520.11,0.0001489,2]
[426398492,1782347442000,-5800.0,0.00014883,2]
[426398498,1782347442000,-520.29,0.0001489,2]
[426398490,1782347442000,-200.0,0.00014879,2]
[426398499,1782347442000,-500.0,0.0001489,2]
[426398496,1782347442000,-520.11,0.0001489,2]
[426398494,1782347442000,-520.11,0.0001489,2]
[426398489,1782347442000,-297.89529666,0.00014877,2]
[426398453,1782347442000,-150.0,0.00014784,2]
[426398488,1782347442000,-150.0,0.00014877,2]
[426398504,1782347442000,-500.0,0.0001489,2]
[426398501,1782347442000,-500.0,0.0001489,2]
[426398503,1782347442000,-500.0,0.0001489,2]
[426398512,1782347442000,-562.9,0.0001489,2]
[426398506,1782347442000,-422.03376906,0.0001489,2]
[426398508,1782347442000,-562.9,0.0001489,2]
[426398509,1782347442000,-562.9,0.0001489,2]
[426398510,1782347442000,-562.9,0.0001489,2]
[426398507,1782347442000,-562.9,0.0001489,2]
[426398511,1782347442000,-562.9,0.0001489,2]
[426398515,1782347442000,-1779.98,0.0001489,2]
[426398516,1782347442000,-1779.98,0.0001489,2]
[426398513,1782347442000,-1779.98,0.0001489,2]
[426398514,1782347442000,-1779.98,0.0001489,2]
[426398505,1782347442000,-500.0,0.0001489,2]
[426398485,1782347442000,-150.0,0.00014877,2]
[426398502,1782347442000,-500.0,0.0001489,2]
[426398481,1782347442000,-150.0,0.00014877,2]
[426398483,1782347442000,-150.0,0.00014877,2]
[426398458,1782347442000,-800.0,0.000148,5]
[426398450,1782347442000,-150.0,0.00014755,2]
[426398449,1782347442000,-150.0,0.00014753,2]
[426398447,1782347442000,-150.0,0.00014747,2]
[426398452,1782347442000,-150.0,0.00014778,2]
[426398454,1782347442000,-150.0,0.00014786,2]
[426398456,1782347442000,-24493.01368492,0.00014791,2]
[426398464,1782347442000,-252.65146257,0.00014825,2]
[426398468,1782347442000,-25000.0,0.00014847,3]
[426398465,1782347442000,-25000.0,0.00014838,3]
[426398466,1782347442000,-150.0,0.00014844,2]
[426398471,1782347442000,-231.58888,0.0001485,2]
[426398469,1782347442000,-5800.0,0.00014849,2]
[426398462,1782347442000,-150.0,0.00014816,2]
[426398472,1782347442000,-25000.0,0.00014856,3]
[426398470,1782347442000,-231.58888,0.0001485,2]
[426398479,1782347442000,-10694.0,0.00014877,2]
[426398475,1782347442000,-25000.0,0.00014865,3]
[426398480,1782347442000,-150.0,0.00014877,2]
[426398482,1782347442000,-150.00000001,0.00014877,2]
[426398477,1782347442000,-25000.0,0.00014874,3]
[426398478,1782347442000,-5800.0,0.00014874,2]
[426398484,1782347442000,-154.55636631,0.00014877,2]
[426398486,1782347442000,-209.17418234,0.00014877,2]
[426398476,1782347442000,-5800.0,0.00014866,2]
[426398473,1782347442000,-5800.0,0.00014858,2]
[426398474,1782347442000,-231.58889,0.0001486,2]
[426398463,1782347442000,-150.0,0.00014819,2]
[426398487,1782347442000,-150.00000001,0.00014877,2]
[426398548,1782347443000,-151.0,0.00014891,2]
[426398532,1782347443000,-500.0,0.00014891,2]
[426398530,1782347443000,-500.0,0.00014891,2]
[426398536,1782347443000,-500.0,0.00014891,2]
[426398531,1782347443000,-500.0,0.00014891,2]
[426398533,1782347443000,-500.0,0.00014891,2]
[426398545,1782347443000,-481.954369,0.00014891,2]
[426398540,1782347443000,-500.0,0.00014891,2]
[426398542,1782347443000,-500.0,0.00014891,2]
[426398551,1782347443000,-25000.0,0.00014891,3]
[426398546,1782347443000,-67568.1098376,0.00014891,2]
[426398550,1782347443000,-151.0,0.00014891,2]
[426398543,1782347443000,-500.0,0.00014891,2]
[426398535,1782347443000,-500.0,0.00014891,2]
[426398520,1782347443000,-151.0,0.00014891,2]
[426398527,1782347443000,-500.0,0.00014891,2]
[426398529,1782347443000,-500.0,0.00014891,2]
[426398537,1782347443000,-500.0,0.00014891,2]
[426398539,1782347443000,-500.0,0.00014891,2]
[426398538,1782347443000,-500.0,0.00014891,2]
[426398526,1782347443000,-1261.9184474,0.00014891,2]
[426398523,1782347443000,-151.0,0.00014891,2]
[426398525,1782347443000,-151.0,0.00014891,2]
[426398524,1782347443000,-151.0,0.00014891,2]
[426398517,1782347443000,-1779.98315319,0.0001489,2]
[426398522,1782347443000,-12557.8989296,0.00014891,2]
[426398519,1782347443000,-1094862.5750423,0.00014891,2]
[426398518,1782347443000,-13770.152831,0.00014891,2]
[426398521,1782347443000,-151.0,0.00014891,2]
[426398534,1782347443000,-500.0,0.00014891,2]
[426398549,1782347443000,-231238.7497492,0.00014891,2]
[426398558,1782347443000,-25000.0,0.000149,3]
[426398541,1782347443000,-500.0,0.00014891,2]
[426398590,1782347443000,-1479.25030617,0.00015,2]
[426398588,1782347443000,-176.49197689,0.00012783,2]
[426398589,1782347443000,-126.00917675,0.00015,2]
[426398586,1782347443000,-500.0,0.00015,2]
[426398572,1782347443000,-227.4541655,0.00014999,2]
[426398569,1782347443000,-10000.0,0.00014913,2]
[426398571,1782347443000,-500.0,0.00014985,2]
[426398573,1782347443000,-300.0,0.00014999,2]
[426398575,1782347443000,-1163650.15440689,0.00015,2]
[426398568,1782347443000,-2894.18668312,0.000149,2]
[426398574,1782347443000,-3691309.72084436,0.00015,2]
[426398566,1782347443000,-909.0576318,0.000149,2]
[426398570,1782347443000,-459.0,0.00014943,2]
[426398567,1782347443000,-34517.26154803,0.000149,2]
[426398587,1782347443000,-6899.53135905,0.00015,2]
[426398560,1782347443000,-261.49644679,0.000149,2]
[426398561,1782347443000,-5800.0,0.000149,2]
[426398547,1782347443000,-151.0,0.00014891,2]
[426398552,1782347443000,-25000.0,0.00014891,3]
[426398554,1782347443000,-9264.0,0.00014898,5]
[426398553,1782347443000,-5800.0,0.00014891,2]
[426398557,1782347443000,-150.0,0.000149,2]
[426398544,1782347443000,-500.0,0.00014891,2]
[426398555,1782347443000,-7411.0,0.00014898,5]
[426398564,1782347443000,-252.65146257,0.000149,2]
[426398556,1782347443000,-10787.19483269,0.000149,2]
[426398565,1782347443000,-272.01877318,0.000149,2]
[426398559,1782347443000,-609.05563596,0.000149,2]
[426398562,1782347443000,-25000.0,0.000149,3]
[426398563,1782347443000,-800.0,0.000149,5]
[426398598,1782347446000,-1385.6749068,0.00015,2]
[426398744,1782347490000,292.76,0.00030198,30]
[426398745,1782347491000,500.0,0.00031506,30]
[426398746,1782347509000,500.0,0.00031506,30]
[426398748,1782347520000,500.0,0.00031506,30]
[426398750,1782347529000,867.61465968,0.00031506,30]
[426398751,1782347538000,500.0,0.00031506,30]
[426398758,1782347628000,500.0,0.00031506,30]
[426398759,1782347672000,3028.02,0.00031506,30]
[426398760,1782347702000,500.0,0.00031506,30]
[426398761,1782347707000,50000.0,0.00031506,30]
[426398763,1782347834000,200.0,0.0003,30]
[426398764,1782347995000,153.0,0.00028727,30]
[426398765,1782347996000,153.0,0.00029727,30]
[426398766,1782347998000,153.0,0.00030727,30]
[426398767,1782348039000,199.0,0.00028727,30]
[426398769,1782348040000,199.0,0.00029727,30]
[426398770,1782348041000,199.0,0.00030727,30]
[426398771,1782348045000,300.0,0.00031506,30]
[426398774,1782348101000,300.0,0.00031506,30]
[426398775,1782348147000,152.0,0.00028727,30]
[426398776,1782348148000,152.0,0.00029727,30]
[426398777,1782348150000,152.0,0.00030727,30]
[426398778,1782348225000,154.0,0.00028728,30]
[426398779,1782348226000,154.0,0.00029728,30]
[426398780,1782348227000,154.0,0.00030728,30]
[426398781,1782348242000,211.4747566,0.00030411,60]
[426398782,1782348262000,169.26,0.00031506,30]
[426398783,1782348297000,169.26,0.00031506,30]
[426398785,1782348361000,298.41737243,0.00030411,60]
[426398841,1782348631000,-500.0,0.00011155,2]
[426398842,1782348631000,-500.0,0.00011155,2]
[426398844,1782348631000,-500.0,0.00011155,2]
[426398840,1782348631000,-140.75201812,0.00011155,2]
[426398843,1782348631000,-500.0,0.00011155,2]
[426398836,1782348631000,-1172.34,0.00011002,2]
[426398838,1782348631000,-153.75,0.00011017,2]
[426398835,1782348631000,-160.0,0.00010982,2]
[426398839,1782348631000,-359.24798188,0.00011155,2]
[426398845,1782348631000,-500.0,0.00011155,2]
[426398833,1782348631000,-1220.08,0.00010982,2]
[426398832,1782348631000,-166.66,0.00010959,2]
[426398834,1782348631000,-182.14,0.00010982,2]
[426398830,1782348631000,-310.23,0.00010411,2]